[Event "Early-Titled-Tuesday-Blitz-April-23-2024"]
[Site "Chess.com"]
[Date "2024.04.23"]
[Round "3"]
[White "PawnEatingZombie"]
[Black "YouShallNotPass001"]
[Result "0-1"]
[WhiteElo "2230"]
[BlackElo "2438"]
[TimeControl "180+1"]
[EndTime "8:28:43 PDT"]
[Termination "YouShallNotPass001 won by checkmate"]

1. e4 {[%clk 0:02:57.7]} 1... Nf6 {[%clk 0:03:00.9]} 2. e5 {[%clk 0:02:57.1]}
2... Ne4 {[%clk 0:03:01.4]} 3. d3 {[%clk 0:02:52.8]} 3... Nc5 {[%clk 0:03:00.5]}
4. d4 {[%clk 0:02:52.7]} 4... Ne6 {[%clk 0:03:01.1]} 5. c4 {[%clk 0:02:47.3]}
5... c5 {[%clk 0:02:47.5]} 6. d5 {[%clk 0:02:46.8]} 6... Nc7 {[%clk 0:02:48.1]}
7. Nc3 {[%clk 0:02:44]} 7... d6 {[%clk 0:02:48.4]} 8. f4 {[%clk 0:02:40.8]} 8...
g6 {[%clk 0:02:48.3]} 9. Nf3 {[%clk 0:02:40.2]} 9... Bg7 {[%clk 0:02:47]} 10. h3
{[%clk 0:02:37.7]} 10... Nd7 {[%clk 0:02:45.4]} 11. Bd3 {[%clk 0:02:26.8]} 11...
b5 {[%clk 0:02:44.7]} 12. O-O {[%clk 0:02:23.1]} 12... bxc4 {[%clk 0:02:44.1]}
13. Bxc4 {[%clk 0:02:22.9]} 13... Nb6 {[%clk 0:02:40.8]} 14. exd6 {[%clk
0:01:59.6]} 14... exd6 {[%clk 0:02:41.7]} 15. Re1+ {[%clk 0:01:58]} 15... Kf8
{[%clk 0:02:42.2]} 16. Bf1 {[%clk 0:01:51.2]} 16... Bb7 {[%clk 0:02:35.2]} 17.
f5 {[%clk 0:01:42.8]} 17... Ncxd5 {[%clk 0:02:34.2]} 18. Nxd5 {[%clk 0:01:40.4]}
18... Bxd5 {[%clk 0:02:33.3]} 19. fxg6 {[%clk 0:01:38.4]} 19... hxg6 {[%clk
0:02:32.7]} 20. Bf4 {[%clk 0:01:30.4]} 20... Rh5 {[%clk 0:02:30.2]} 21. Qd2
{[%clk 0:01:06.7]} 21... Kg8 {[%clk 0:02:11.9]} 22. Ng5 {[%clk 0:00:53.7]} 22...
Bd4+ {[%clk 0:01:59.3]} 23. Kh2 {[%clk 0:00:52.2]} 23... Bf6 {[%clk 0:01:51.8]}
24. Ne4 {[%clk 0:00:26.9]} 24... Bxe4 {[%clk 0:01:46]} 25. Rxe4 {[%clk
0:00:26.5]} 25... d5 {[%clk 0:01:46.6]} 26. Ree1 {[%clk 0:00:23.8]} 26... Nc4
{[%clk 0:01:39.1]} 27. Bxc4 {[%clk 0:00:23.4]} 27... dxc4 {[%clk 0:01:40]} 28.
Qe2 {[%clk 0:00:13.8]} 28... Rf5 {[%clk 0:01:37]} 29. Bg3 {[%clk 0:00:13.5]}
29... Qd3 {[%clk 0:01:36.3]} 30. Rad1 {[%clk 0:00:11.1]} 30... Qxe2 {[%clk
0:01:34]} 31. Rxe2 {[%clk 0:00:12]} 31... c3 {[%clk 0:01:31.4]} 32. bxc3 {[%clk
0:00:12]} 32... Bxc3 {[%clk 0:01:32.3]} 33. Rc2 {[%clk 0:00:11.7]} 33... Bd4
{[%clk 0:01:32.7]} 34. Rb1 {[%clk 0:00:09.6]} 34... a5 {[%clk 0:01:32.9]} 35.
Rb7 {[%clk 0:00:09.6]} 35... a4 {[%clk 0:01:32.2]} 36. Bd6 {[%clk 0:00:09]}
36... Kg7 {[%clk 0:01:28.9]} 37. Rb5 {[%clk 0:00:07.7]} 37... Rd5 {[%clk
0:01:12.9]} 38. Bg3 {[%clk 0:00:06.9]} 38... Re8 {[%clk 0:01:09.1]} 39. a3
{[%clk 0:00:05.5]} 39... Re3 {[%clk 0:01:06.9]} 40. Ra2 {[%clk 0:00:04.4]} 40...
Rb3 {[%clk 0:01:06.3]} 41. Ra5 {[%clk 0:00:04.3]} 41... Rb1 {[%clk 0:01:02.8]}
42. Bf4 {[%clk 0:00:02]} 42... Bg1+ {[%clk 0:01:01]} 43. Kg3 {[%clk 0:00:02.3]}
43... Rb3+ {[%clk 0:01:01.3]} 44. Kg4 {[%clk 0:00:01.9]} 44... Bd4 {[%clk
0:00:56.6]} 45. Rxa4 {[%clk 0:00:01.8]} 45... f5+ {[%clk 0:00:56.1]} 46. Kg5
{[%clk 0:00:01.8]} 46... Bf6# {[%clk 0:00:56.3]} 0-1

[Event "Early-Titled-Tuesday-Blitz-April-23-2024"]
[Site "Chess.com"]
[Date "2024.04.23"]
[Round "3"]
[White "inagreV"]
[Black "abelmat"]
[Result "1-0"]
[WhiteElo "2370"]
[BlackElo "2048"]
[TimeControl "180+1"]
[EndTime "8:28:43 PDT"]
[Termination "inagreV won on time"]

1. e4 {[%clk 0:02:57]} 1... e6 {[%clk 0:02:59.4]} 2. d4 {[%clk 0:02:56.5]} 2...
d5 {[%clk 0:03:00.3]} 3. Nc3 {[%clk 0:02:56.5]} 3... dxe4 {[%clk 0:02:59.9]} 4.
Nxe4 {[%clk 0:02:56.5]} 4... Nd7 {[%clk 0:03:00.4]} 5. Nf3 {[%clk 0:02:56.1]}
5... Ngf6 {[%clk 0:03:01.3]} 6. Nxf6+ {[%clk 0:02:56.6]} 6... Nxf6 {[%clk
0:03:01]} 7. Be3 {[%clk 0:02:57.3]} 7... Be7 {[%clk 0:02:54.5]} 8. Bd3 {[%clk
0:02:56.6]} 8... O-O {[%clk 0:02:54.7]} 9. Qe2 {[%clk 0:02:56.6]} 9... b6 {[%clk
0:02:55]} 10. O-O-O {[%clk 0:02:56.1]} 10... Bb7 {[%clk 0:02:55.3]} 11. Ne5
{[%clk 0:02:53]} 11... c5 {[%clk 0:02:55.3]} 12. dxc5 {[%clk 0:02:52]} 12... Qc7
{[%clk 0:02:55.8]} 13. c6 {[%clk 0:02:41]} 13... Bxc6 {[%clk 0:02:44.2]} 14.
Nxc6 {[%clk 0:02:39.7]} 14... Qxc6 {[%clk 0:02:43.9]} 15. Bb5 {[%clk 0:02:32.9]}
15... Qc7 {[%clk 0:02:37.7]} 16. Bg5 {[%clk 0:02:28.9]} 16... a6 {[%clk
0:02:26.8]} 17. Bxa6 {[%clk 0:02:11]} 17... Qc5 {[%clk 0:01:44.3]} 18. Be3
{[%clk 0:02:02.4]} 18... Qa5 {[%clk 0:01:37.8]} 19. Bc4 {[%clk 0:02:02.4]} 19...
b5 {[%clk 0:01:13.5]} 20. Bb3 {[%clk 0:02:01.4]} 20... Nd5 {[%clk 0:00:55.3]}
21. Bd4 {[%clk 0:01:51.1]} 21... b4 {[%clk 0:00:44]} 22. g3 {[%clk 0:01:32.8]}
22... Nc3 {[%clk 0:00:32.2]} 23. bxc3 {[%clk 0:00:50.6]} 23... bxc3 {[%clk
0:00:33.1]} 24. a4 {[%clk 0:00:48.3]} 24... Bf6 {[%clk 0:00:08.6]} 25. Bxf6
{[%clk 0:00:39.1]} 25... gxf6 {[%clk 0:00:09.5]} 26. Qg4+ {[%clk 0:00:39.3]}
26... Kh8 {[%clk 0:00:09.2]} 27. Qd4 {[%clk 0:00:39.3]} 27... e5 {[%clk
0:00:07.4]} 28. Qd6 {[%clk 0:00:34.2]} 28... Ra6 {[%clk 0:00:05.7]} 29. Qa3
{[%clk 0:00:32.5]} 29... Raa8 {[%clk 0:00:04.3]} 30. Rd5 {[%clk 0:00:32.2]}
30... Qa6 {[%clk 0:00:02.8]} 31. Rhd1 {[%clk 0:00:32.2]} 31... Rab8 {[%clk
0:00:02.5]} 32. Rd6 {[%clk 0:00:29.7]} 1-0

[Event "Early-Titled-Tuesday-Blitz-April-23-2024"]
[Site "Chess.com"]
[Date "2024.04.23"]
[Round "3"]
[White "Timerkhanov"]
[Black "Arteler"]
[Result "1-0"]
[WhiteElo "2637"]
[BlackElo "2352"]
[TimeControl "180+1"]
[EndTime "8:28:44 PDT"]
[Termination "Timerkhanov won on time"]

1. d4 {[%clk 0:03:00.9]} 1... Nf6 {[%clk 0:02:59.8]} 2. Bg5 {[%clk 0:03:01.4]}
2... g6 {[%clk 0:02:58.7]} 3. Bxf6 {[%clk 0:03:01.3]} 3... exf6 {[%clk
0:02:59.6]} 4. e3 {[%clk 0:03:01.9]} 4... Bg7 {[%clk 0:03:00.2]} 5. g3 {[%clk
0:03:02.5]} 5... d6 {[%clk 0:03:00.9]} 6. Bg2 {[%clk 0:03:03.1]} 6... O-O {[%clk
0:03:01.6]} 7. Ne2 {[%clk 0:03:03.7]} 7... c6 {[%clk 0:03:02]} 8. O-O {[%clk
0:03:04.2]} 8... Re8 {[%clk 0:03:02.6]} 9. c4 {[%clk 0:03:04.8]} 9... f5 {[%clk
0:03:03.3]} 10. Nbc3 {[%clk 0:03:05.4]} 10... Nd7 {[%clk 0:03:03.9]} 11. Qd3
{[%clk 0:03:05.9]} 11... Nf6 {[%clk 0:03:04.4]} 12. b4 {[%clk 0:03:06.6]} 12...
Qe7 {[%clk 0:02:57.3]} 13. b5 {[%clk 0:03:05.7]} 13... Bd7 {[%clk 0:02:56.6]}
14. a4 {[%clk 0:03:05.7]} 14... Ne4 {[%clk 0:02:50.7]} 15. Rab1 {[%clk
0:03:05.8]} 15... Rab8 {[%clk 0:02:47.2]} 16. a5 {[%clk 0:03:05.9]} 16... h5
{[%clk 0:02:32]} 17. h4 {[%clk 0:03:05.5]} 17... g5 {[%clk 0:02:22.7]} 18. hxg5
{[%clk 0:03:04.7]} 18... Qxg5 {[%clk 0:02:23.3]} 19. Nxe4 {[%clk 0:03:01.6]}
19... fxe4 {[%clk 0:02:24.2]} 20. Bxe4 {[%clk 0:03:01.4]} 20... h4 {[%clk
0:01:42.8]} 21. Kg2 {[%clk 0:02:32.9]} 21... cxb5 {[%clk 0:01:40.5]} 22. cxb5
{[%clk 0:02:31.4]} 22... h3+ {[%clk 0:01:18.5]} 23. Kh2 {[%clk 0:02:28.7]} 23...
d5 {[%clk 0:01:10.1]} 24. Bh1 {[%clk 0:02:16.2]} 24... Bf5 {[%clk 0:01:09.2]}
25. Qb3 {[%clk 0:02:16.7]} 25... Bxb1 {[%clk 0:01:08]} 26. Rxb1 {[%clk
0:02:11.7]} 26... Qf5 {[%clk 0:00:49.6]} 27. Nf4 {[%clk 0:02:11.3]} 27... Red8
{[%clk 0:00:45.3]} 28. Bxd5 {[%clk 0:02:09.3]} 28... Bh6 {[%clk 0:00:41]} 29.
Bf3 {[%clk 0:01:56]} 29... Bxf4 {[%clk 0:00:39.2]} 30. gxf4 {[%clk 0:01:56.9]}
30... Rd6 {[%clk 0:00:33.1]} 31. Rg1+ {[%clk 0:01:49.5]} 31... Rg6 {[%clk
0:00:33.3]} 32. Rxg6+ {[%clk 0:01:49.4]} 32... Qxg6 {[%clk 0:00:34.2]} 33. b6
{[%clk 0:01:45.9]} 33... axb6 {[%clk 0:00:31.5]} 34. axb6 {[%clk 0:01:46.8]}
34... Kg7 {[%clk 0:00:26.3]} 35. Qb5 {[%clk 0:01:41.8]} 35... Ra8 {[%clk
0:00:12.2]} 36. Qe5+ {[%clk 0:01:31.8]} 36... Kg8 {[%clk 0:00:12.8]} 37. f5
{[%clk 0:01:24.2]} 37... Qg5 {[%clk 0:00:07.5]} 38. f6 {[%clk 0:01:21.3]} 38...
Qxe5+ {[%clk 0:00:06.6]} 39. dxe5 {[%clk 0:01:21.5]} 39... Re8 {[%clk
0:00:06.4]} 40. Bxb7 {[%clk 0:01:20.7]} 40... Re6 {[%clk 0:00:06.2]} 41. Bd5
{[%clk 0:00:59]} 41... Rxb6 {[%clk 0:00:06.6]} 42. Kxh3 {[%clk 0:00:58.2]} 42...
Rb5 {[%clk 0:00:07.3]} 43. e4 {[%clk 0:00:58.6]} 43... Rb3+ {[%clk 0:00:07.8]}
44. Kg4 {[%clk 0:00:58.8]} 44... Kf8 {[%clk 0:00:05.5]} 45. f4 {[%clk
0:00:58.5]} 45... Rb1 {[%clk 0:00:04.6]} 46. Kf5 {[%clk 0:00:58.3]} 46... Rg1
{[%clk 0:00:02.5]} 47. e6 {[%clk 0:00:58.1]} 47... fxe6+ {[%clk 0:00:01.3]} 48.
Bxe6 {[%clk 0:00:59]} 1-0

[Event "Early-Titled-Tuesday-Blitz-April-23-2024"]
[Site "Chess.com"]
[Date "2024.04.23"]
[Round "3"]
[White "grantelgibbs"]
[Black "ashookk"]
[Result "0-1"]
[WhiteElo "1826"]
[BlackElo "2338"]
[TimeControl "180+1"]
[EndTime "8:28:46 PDT"]
[Termination "ashookk won on time"]

1. e3 {[%clk 0:02:59.3]} 1... d5 {[%clk 0:02:56.8]} 2. b3 {[%clk 0:02:59.2]}
2... e5 {[%clk 0:02:56.5]} 3. Bb2 {[%clk 0:02:59.1]} 3... Bd6 {[%clk 0:02:57]}
4. Nf3 {[%clk 0:02:58.8]} 4... Qe7 {[%clk 0:02:54.8]} 5. c4 {[%clk 0:02:57.2]}
5... Nf6 {[%clk 0:02:48]} 6. Nc3 {[%clk 0:02:56.4]} 6... dxc4 {[%clk 0:02:39.2]}
7. Bxc4 {[%clk 0:02:55.6]} 7... c6 {[%clk 0:02:33.3]} 8. O-O {[%clk 0:02:55.1]}
8... O-O {[%clk 0:02:33.2]} 9. Re1 {[%clk 0:02:54.2]} 9... Bg4 {[%clk
0:02:33.5]} 10. h3 {[%clk 0:02:53.8]} 10... Bh5 {[%clk 0:02:33.6]} 11. Be2
{[%clk 0:02:42.8]} 11... Nbd7 {[%clk 0:02:33.6]} 12. d4 {[%clk 0:02:42.7]} 12...
Rad8 {[%clk 0:02:23.3]} 13. Qc2 {[%clk 0:02:30]} 13... Bg6 {[%clk 0:02:22.8]}
14. Qd1 {[%clk 0:02:26]} 14... Rfe8 {[%clk 0:02:13.3]} 15. Rc1 {[%clk
0:02:24.2]} 15... Ba3 {[%clk 0:02:05.4]} 16. Qd2 {[%clk 0:02:05.3]} 16... Bb4
{[%clk 0:01:58.6]} 17. Qd1 {[%clk 0:01:31.6]} 17... Ne4 {[%clk 0:01:51.1]} 18.
Nd2 {[%clk 0:01:16]} 18... Nxd2 {[%clk 0:01:31.2]} 19. Qxd2 {[%clk 0:01:15.4]}
19... Nf6 {[%clk 0:01:32.1]} 20. Bf3 {[%clk 0:01:04.9]} 20... c5 {[%clk
0:01:04]} 21. Rcd1 {[%clk 0:00:54.5]} 21... cxd4 {[%clk 0:00:42.5]} 22. exd4
{[%clk 0:00:54.1]} 22... e4 {[%clk 0:00:43.1]} 23. d5 {[%clk 0:00:31.8]} 23...
Qc5 {[%clk 0:00:32.4]} 24. Bg4 {[%clk 0:00:18.7]} 24... Rxd5 {[%clk 0:00:27.4]}
25. Qe3 {[%clk 0:00:15]} 25... Rxd1 {[%clk 0:00:20.6]} 26. Bxd1 {[%clk 0:00:04]}
26... Qa5 {[%clk 0:00:12.6]} 27. a4 {[%clk 0:00:02]} 27... Nd5 {[%clk
0:00:09.4]} 28. Nxd5 {[%clk 0:00:01.9]} 28... Bxe1 {[%clk 0:00:09.5]} 0-1

[Event "Early-Titled-Tuesday-Blitz-April-23-2024"]
[Site "Chess.com"]
[Date "2024.04.23"]
[Round "3"]
[White "RobertoJBM"]
[Black "Mackster23"]
[Result "1-0"]
[WhiteElo "2857"]
[BlackElo "2577"]
[TimeControl "180+1"]
[EndTime "8:28:47 PDT"]
[Termination "RobertoJBM won by resignation"]

1. d4 {[%clk 0:03:00.9]} 1... Nf6 {[%clk 0:02:59.6]} 2. e3 {[%clk 0:03:00.8]}
2... d5 {[%clk 0:02:58.6]} 3. Nf3 {[%clk 0:03:01.2]} 3... c5 {[%clk 0:02:57.8]}
4. c3 {[%clk 0:03:01.1]} 4... e6 {[%clk 0:02:48.1]} 5. Nbd2 {[%clk 0:03:00.6]}
5... b6 {[%clk 0:02:45.3]} 6. Bb5+ {[%clk 0:02:58.1]} 6... Nbd7 {[%clk
0:02:44.7]} 7. O-O {[%clk 0:02:52.7]} 7... Bb7 {[%clk 0:02:42.4]} 8. Ne5 {[%clk
0:02:50.3]} 8... a6 {[%clk 0:02:40.8]} 9. Bd3 {[%clk 0:02:44.1]} 9... Nxe5
{[%clk 0:02:37.3]} 10. dxe5 {[%clk 0:02:43.9]} 10... Nd7 {[%clk 0:02:37.9]} 11.
f4 {[%clk 0:02:43.5]} 11... f5 {[%clk 0:02:28.5]} 12. exf6 {[%clk 0:02:41.9]}
12... Nxf6 {[%clk 0:02:28.3]} 13. Qe2 {[%clk 0:02:41.2]} 13... Qc7 {[%clk
0:01:54.4]} 14. e4 {[%clk 0:02:38.7]} 14... c4 {[%clk 0:01:54.5]} 15. Bc2 {[%clk
0:02:26.5]} 15... Bc5+ {[%clk 0:01:54]} 16. Kh1 {[%clk 0:02:25.8]} 16... O-O-O
{[%clk 0:01:49]} 17. e5 {[%clk 0:02:16.7]} 17... Nd7 {[%clk 0:01:48.6]} 18. b3
{[%clk 0:02:13.9]} 18... b5 {[%clk 0:01:43.8]} 19. a4 {[%clk 0:02:09.5]} 19...
b4 {[%clk 0:01:14]} 20. bxc4 {[%clk 0:01:28.7]} 20... bxc3 {[%clk 0:01:13.6]}
21. Nb3 {[%clk 0:01:27.7]} 21... d4 {[%clk 0:01:13.4]} 22. f5 {[%clk 0:01:20.3]}
22... exf5 {[%clk 0:00:56.3]} 23. e6 {[%clk 0:01:12.5]} 23... Nf6 {[%clk
0:00:49.4]} 24. Bxf5 {[%clk 0:01:04.8]} 24... Kb8 {[%clk 0:00:29]} 25. Nxc5
{[%clk 0:00:52.2]} 25... Qxc5 {[%clk 0:00:28.9]} 26. e7 {[%clk 0:00:38.5]} 26...
Rde8 {[%clk 0:00:29.1]} 27. Ba3 {[%clk 0:00:35.8]} 27... Qc6 {[%clk 0:00:26.6]}
28. Rad1 {[%clk 0:00:28.6]} 28... g6 {[%clk 0:00:18.3]} 29. Bh3 {[%clk
0:00:25.7]} 29... Ne4 {[%clk 0:00:17.1]} 30. Rxd4 {[%clk 0:00:22.1]} 30... Ka8
{[%clk 0:00:13.4]} 31. Bd7 {[%clk 0:00:17.7]} 31... Qc7 {[%clk 0:00:04]} 32.
Bxe8 {[%clk 0:00:16.4]} 32... Rxe8 {[%clk 0:00:04.9]} 33. Rxe4 {[%clk
0:00:16.4]} 33... Bxe4 {[%clk 0:00:05]} 34. Qxe4+ {[%clk 0:00:16.8]} 1-0

[Event "Early-Titled-Tuesday-Blitz-April-23-2024"]
[Site "Chess.com"]
[Date "2024.04.23"]
[Round "3"]
[White "Dewarfd"]
[Black "Valio_M1948"]
[Result "0-1"]
[WhiteElo "2099"]
[BlackElo "2374"]
[TimeControl "180+1"]
[EndTime "8:28:47 PDT"]
[Termination "Valio_M1948 won on time"]

1. c4 {[%clk 0:03:00.9]} 1... g6 {[%clk 0:02:58.3]} 2. Nc3 {[%clk 0:02:57.9]}
2... Bg7 {[%clk 0:02:59.2]} 3. g3 {[%clk 0:02:58]} 3... c5 {[%clk 0:02:59.8]} 4.
Bg2 {[%clk 0:02:58]} 4... Nc6 {[%clk 0:02:59.7]} 5. e4 {[%clk 0:02:57.9]} 5...
d6 {[%clk 0:02:59.3]} 6. Nge2 {[%clk 0:02:57.8]} 6... b6 {[%clk 0:02:58.4]} 7.
O-O {[%clk 0:02:57.3]} 7... Bb7 {[%clk 0:02:59]} 8. d3 {[%clk 0:02:56.6]} 8...
Qd7 {[%clk 0:02:59.7]} 9. Be3 {[%clk 0:02:55.2]} 9... Nd4 {[%clk 0:02:59.2]} 10.
Qd2 {[%clk 0:02:54.4]} 10... e6 {[%clk 0:02:55.7]} 11. Rab1 {[%clk 0:02:40]}
11... Ne7 {[%clk 0:02:56.1]} 12. b4 {[%clk 0:02:35.7]} 12... O-O {[%clk
0:02:53.1]} 13. Bh6 {[%clk 0:02:28.7]} 13... f5 {[%clk 0:02:46.3]} 14. Bxg7
{[%clk 0:02:19.4]} 14... Kxg7 {[%clk 0:02:47.2]} 15. Nxd4 {[%clk 0:02:04.7]}
15... cxd4 {[%clk 0:02:48.1]} 16. Ne2 {[%clk 0:01:55.4]} 16... e5 {[%clk
0:02:48.1]} 17. f4 {[%clk 0:01:38.1]} 17... fxe4 {[%clk 0:02:39.2]} 18. Bxe4
{[%clk 0:01:32.1]} 18... Bxe4 {[%clk 0:02:38.2]} 19. dxe4 {[%clk 0:01:33]} 19...
Qe6 {[%clk 0:02:37.4]} 20. Rfc1 {[%clk 0:01:18.6]} 20... Rac8 {[%clk 0:02:37.9]}
21. Qd3 {[%clk 0:01:12.2]} 21... Rc7 {[%clk 0:02:38.4]} 22. Rb2 {[%clk
0:00:59.2]} 22... Rfc8 {[%clk 0:02:33.6]} 23. Rbc2 {[%clk 0:00:59.2]} 23... Nc6
{[%clk 0:02:26.8]} 24. a3 {[%clk 0:00:55.7]} 24... a5 {[%clk 0:02:27.4]} 25. c5
{[%clk 0:00:45.5]} 25... dxc5 {[%clk 0:01:17.4]} 26. bxc5 {[%clk 0:00:44.3]}
26... b5 {[%clk 0:01:18]} 27. Qxb5 {[%clk 0:00:40.9]} 27... Rb8 {[%clk
0:01:18.6]} 28. Qc4 {[%clk 0:00:32.8]} 28... Qxc4 {[%clk 0:01:05.7]} 29. Rxc4
{[%clk 0:00:32.8]} 29... Rb3 {[%clk 0:01:06.5]} 30. a4 {[%clk 0:00:11.4]} 30...
d3 {[%clk 0:01:00.6]} 31. Nc3 {[%clk 0:00:09.4]} 31... Nd4 {[%clk 0:00:39.1]}
32. Kf2 {[%clk 0:00:07.6]} 32... Rb2+ {[%clk 0:00:18.8]} 33. Ke3 {[%clk
0:00:07.5]} 33... d2 {[%clk 0:00:19.1]} 34. Rd1 {[%clk 0:00:07.2]} 34... Nc2+
{[%clk 0:00:19.7]} 35. Kd3 {[%clk 0:00:03.7]} 35... Nb4+ {[%clk 0:00:19.5]} 0-1

[Event "Early-Titled-Tuesday-Blitz-April-23-2024"]
[Site "Chess.com"]
[Date "2024.04.23"]
[Round "3"]
[White "norwaytoadog"]
[Black "maurovargas01"]
[Result "1-0"]
[WhiteElo "2342"]
[BlackElo "1892"]
[TimeControl "180+1"]
[EndTime "8:28:48 PDT"]
[Termination "norwaytoadog won on time"]

1. e4 {[%clk 0:03:00.2]} 1... d5 {[%clk 0:02:57.2]} 2. exd5 {[%clk 0:03:00]}
2... Qxd5 {[%clk 0:02:58.1]} 3. Nc3 {[%clk 0:03:00.5]} 3... Qa5 {[%clk
0:02:58.2]} 4. d4 {[%clk 0:03:00.5]} 4... c6 {[%clk 0:02:58]} 5. Nf3 {[%clk
0:03:00]} 5... Nf6 {[%clk 0:02:58]} 6. Bc4 {[%clk 0:02:59]} 6... Bg4 {[%clk
0:02:57.4]} 7. O-O {[%clk 0:02:58]} 7... e6 {[%clk 0:02:56.9]} 8. Re1 {[%clk
0:02:55.4]} 8... Bd6 {[%clk 0:02:55.3]} 9. h3 {[%clk 0:02:55]} 9... Bh5 {[%clk
0:02:53.8]} 10. d5 {[%clk 0:02:45.9]} 10... cxd5 {[%clk 0:02:48.3]} 11. Nxd5
{[%clk 0:02:43.2]} 11... Bxf3 {[%clk 0:02:40.5]} 12. gxf3 {[%clk 0:02:21.9]}
12... Nxd5 {[%clk 0:02:37.7]} 13. Bxd5 {[%clk 0:01:53.6]} 13... O-O {[%clk
0:01:54.6]} 14. Bxb7 {[%clk 0:01:43.1]} 14... Nd7 {[%clk 0:01:32.6]} 15. Bxa8
{[%clk 0:01:39]} 15... Rxa8 {[%clk 0:01:31.4]} 16. Be3 {[%clk 0:01:14.6]} 16...
Qc7 {[%clk 0:01:17]} 17. Qd3 {[%clk 0:01:04.1]} 17... Ne5 {[%clk 0:01:10.9]} 18.
Qe4 {[%clk 0:01:03.6]} 18... Rb8 {[%clk 0:01:07.2]} 19. f4 {[%clk 0:00:57.7]}
19... Rb4 {[%clk 0:00:40.4]} 20. Qa8+ {[%clk 0:00:55.8]} 20... Rb8 {[%clk
0:00:38.9]} 21. Qg2 {[%clk 0:00:53]} 21... Ng6 {[%clk 0:00:37.6]} 22. b3 {[%clk
0:00:45.5]} 22... Nxf4 {[%clk 0:00:33.9]} 23. Bxf4 {[%clk 0:00:45.2]} 23... Bxf4
{[%clk 0:00:32.5]} 24. c4 {[%clk 0:00:44.5]} 24... Be5 {[%clk 0:00:19.4]} 25.
Rad1 {[%clk 0:00:44.1]} 25... Bc3 {[%clk 0:00:16.6]} 26. Re3 {[%clk 0:00:43.4]}
26... Bf6 {[%clk 0:00:14.2]} 27. Red3 {[%clk 0:00:42.1]} 27... Qe5 {[%clk
0:00:08.9]} 28. Re3 {[%clk 0:00:31.7]} 28... Qh5 {[%clk 0:00:07.9]} 29. Qf3
{[%clk 0:00:26.9]} 29... Qg6+ {[%clk 0:00:04.1]} 30. Kf1 {[%clk 0:00:25.8]}
30... Qc2 {[%clk 0:00:02.6]} 31. Qe2 {[%clk 0:00:24]} 1-0

[Event "Early-Titled-Tuesday-Blitz-April-23-2024"]
[Site "Chess.com"]
[Date "2024.04.23"]
[Round "3"]
[White "czechbul17"]
[Black "ozates"]
[Result "1-0"]
[WhiteElo "2051"]
[BlackElo "2543"]
[TimeControl "180+1"]
[EndTime "8:28:50 PDT"]
[Termination "czechbul17 won by checkmate"]

1. d4 {[%clk 0:03:00.9]} 1... Nf6 {[%clk 0:02:55.3]} 2. c4 {[%clk 0:02:58.5]}
2... g6 {[%clk 0:02:55.7]} 3. Nc3 {[%clk 0:02:58.2]} 3... Bg7 {[%clk 0:02:55.8]}
4. e4 {[%clk 0:02:58.5]} 4... O-O {[%clk 0:02:56.5]} 5. f4 {[%clk 0:02:58.5]}
5... d6 {[%clk 0:02:55.1]} 6. Nf3 {[%clk 0:02:58.4]} 6... c5 {[%clk 0:02:55.4]}
7. d5 {[%clk 0:02:58.6]} 7... e6 {[%clk 0:02:55.5]} 8. Be2 {[%clk 0:02:59]} 8...
exd5 {[%clk 0:02:55.8]} 9. cxd5 {[%clk 0:02:59.9]} 9... b5 {[%clk 0:02:56.1]}
10. e5 {[%clk 0:03:00]} 10... dxe5 {[%clk 0:02:45]} 11. fxe5 {[%clk 0:03:00.9]}
11... Ng4 {[%clk 0:02:45.5]} 12. Bg5 {[%clk 0:03:00.7]} 12... Qa5 {[%clk
0:02:45.1]} 13. O-O {[%clk 0:02:53.9]} 13... Nxe5 {[%clk 0:02:41.9]} 14. d6
{[%clk 0:02:21.1]} 14... Be6 {[%clk 0:02:24.7]} 15. Nxe5 {[%clk 0:02:07.9]}
15... Bxe5 {[%clk 0:02:25.6]} 16. Bf3 {[%clk 0:02:06.9]} 16... Nd7 {[%clk
0:02:16.8]} 17. Bxa8 {[%clk 0:02:06.4]} 17... Rxa8 {[%clk 0:02:17.7]} 18. Nd5
{[%clk 0:01:06.3]} 18... Bd4+ {[%clk 0:02:10.5]} 19. Ne3 {[%clk 0:01:01.1]}
19... Bxb2 {[%clk 0:02:07.3]} 20. Qf3 {[%clk 0:00:58.1]} 20... Re8 {[%clk
0:01:56.8]} 21. Rae1 {[%clk 0:00:43.7]} 21... Qxa2 {[%clk 0:01:48.2]} 22. Nd5
{[%clk 0:00:42.1]} 22... Bd4+ {[%clk 0:01:41.9]} 23. Kh1 {[%clk 0:00:41.4]}
23... b4 {[%clk 0:01:29.9]} 24. Rxe6 {[%clk 0:00:38.8]} 24... Rf8 {[%clk
0:01:16.4]} 25. Bh6 {[%clk 0:00:20.2]} 25... Bg7 {[%clk 0:01:02.8]} 26. Bxg7
{[%clk 0:00:19.8]} 26... Kxg7 {[%clk 0:01:03.7]} 27. Re7 {[%clk 0:00:20.4]}
27... Qa4 {[%clk 0:00:46.9]} 28. Rxf7+ {[%clk 0:00:19.7]} 28... Rxf7 {[%clk
0:00:47.8]} 29. Qxf7+ {[%clk 0:00:19.8]} 29... Kh6 {[%clk 0:00:48.5]} 30. Qf4+
{[%clk 0:00:17.9]} 30... Kg7 {[%clk 0:00:47.3]} 31. Nf6 {[%clk 0:00:15.8]} 31...
Nb6 {[%clk 0:00:36.4]} 32. Qe5 {[%clk 0:00:13.2]} 32... Nc4 {[%clk 0:00:33.5]}
33. Qe7+ {[%clk 0:00:12.2]} 33... Kh6 {[%clk 0:00:33.2]} 34. h4 {[%clk
0:00:12.8]} 34... g5 {[%clk 0:00:09.5]} 35. Qxh7# {[%clk 0:00:12.1]} 1-0